Cogmind - Beta 17.1 @@@ ROGUE MODE // 2026.08.18 @ 11:23:02 Player: Minty Result: Destroyed by S-10 Pest with Light Assault Rifle Performance ------------- Evolutions (1) 500 Regions Visited (5) 1000 Robots Destroyed (56) 280 Value Destroyed (1540) 1540 Prototype IDs (29) 580 Alien Tech Used (0) 0 Bonus (6331) 6331 TOTAL SCORE: 10231 Bonus ------- Follower Combat Kills 131 Prayed to X0-1V1 5000 Major X0-1V1 Interference 900 Aligned with FarCom 300 Cogmind --------- Core Integrity 0/200 Matter 300/300 Energy 100/100 System Corruption 0% Temperature Cool (4) Movement Walking (110) Location -8/Mines Parts ------- > --- POWER (1) -------- (None) > --- PROPULSION (2) --- Titanium Leg (fused) VSS Leg (fused) > --- UTILITY (4) ------ Small Storage Unit Improved Weapon Shielding Self-contained Transmogrifier X0-1V1's Piety Tracker > --- WEAPON (2) ------- Great Axe (fused) Great Axe (fused) > --- INVENTORY (8) ---- Reinforced Deuterium Engine Large Storage Unit Shock Bomb Launcher Mini Grenade Launcher Mini Grenade Launcher Mini Grenade Launcher Field Lobotomy Kit (5) Peak State ------------ > --- POWER ------------ Hybrid Deuterium Engine > --- PROPULSION ------- Carbon-fiber Leg VSS Leg > --- UTILITY ---------- Large Storage Unit Improved Propulsion Shielding Self-contained Transmogrifier X0-1V1's Piety Tracker > --- WEAPON ----------- Precision Grenade Launcher Makeshift Axe > --- INVENTORY -------- Improved Ion Engine Light Nuclear Core Reinforced Deuterium Engine Improved Treads Small Storage Unit EM Shotgun Beam Rifle Beam Rifle Beam Rifle Improved Light Cannon EMP Blaster Mini Grenade Launcher Mini Grenade Launcher Mini Grenade Launcher [Rating: 48] Favorites ----------- Power Light Nuclear Core Engine Light Ion Engine Power Core Light Nuclear Core Propulsion Improved Aluminum Leg Treads Light Treads Leg Improved Aluminum Leg Utility Self-contained Transmogrifier Device Self-contained Transmogrifier Storage Large Storage Unit Processor Terrain Scan Processor Protection Improved Propulsion Shielding Weapon Beam Rifle Energy Gun Beam Rifle Ballistic Gun Assault Rifle Launcher Missile Launcher Slashing Weapon Great Axe Build | -11 -10 -9 -9 -9 -8 ------- Run | Yrd Mat Mat Min Exi Min Slots Evolved 2 | . . 2 . . . Power . | . . . . . . Propulsion . | . . . . . . Utility 2 | . . 2 . . . Weapon . | . . . . . . Parts Attached 25 | . 9 10 2 2 2 Power 3 | . 1 1 . 1 . Engine 2 | . 1 1 . . . Core 1 | . . . . 1 . Reactor . | . . . . . . Propulsion 4 | . 2 2 . . . Treads 2 | . 2 . . . . Leg 2 | . . 2 . . . Wheel . | . . . . . . Hover . | . . . . . . Flight . | . . . . . . Utility 9 | . 2 3 2 1 1 Device 3 | . 1 . 2 . . Storage 2 | . 1 . . 1 . Processor . | . . . . . . Hackware . | . . . . . . Protection 4 | . . 3 . . 1 Artifact . | . . . . . . Weapon 9 | . 4 4 . . 1 Energy Gun 4 | . 1 3 . . . Energy Cannon . | . . . . . . Ballistic Gun 2 | . 1 1 . . . Ballistic Cannon . | . . . . . . Launcher 3 | . 2 . . . 1 Special Weapon . | . . . . . . Impact Weapon . | . . . . . . Slashing Weapon . | . . . . . . Piercing Weapon . | . . . . . . Special Melee Weapon . | . . . . . . Unidentified Prototypes 1 | . . . 1 . . Parts Lost 8 | . . 6 . . 2 Power 2 | . . 1 . . 1 Propulsion 1 | . . 1 . . . Utility 3 | . . 2 . . 1 Weapon 2 | . . 2 . . . Highest Loss Streak 3 | . . 3 . . 1 To Critical Strikes . | . . . . . . Average Backups 11 | . 10 12 11 12 7 Power 2 | . 1 2 2 3 1 Propulsion . | . 2 . . . . Utility 1 | . 2 2 1 1 1 Weapon 6 | . 5 8 8 7 3 Tool/Special . | . . . . . . Unused Backups 21 | . 6 1 . 7 7 Power 5 | . 1 . . 2 2 Propulsion 5 | . 4 . . 1 . Utility . | . . . . . . Weapon 10 | . 1 1 . 4 4 Tool/Special 1 | . . . . . 1 Average Slot Usage (%) 98 | . 96 95 99 100 99 Engine 7 | . 14 11 5 7 . Core 3 | . . . 5 3 11 Treads 5 | . 13 12 . . . Leg 17 | . 14 7 22 22 22 Device 20 | . 10 16 26 22 22 Storage 11 | . 14 11 11 11 11 Protection 7 | . . 11 5 11 10 Energy Gun 8 | . 12 15 9 . . Ballistic Gun 2 | . 11 3 . . . Launcher 6 | . 4 2 12 7 3 Slashing Weapon 5 | . . . . 14 18 Peak Build Rating 48 | . 18 27 47 48 45 Average Rating 30 | . 10 24 31 46 44 On Entrance 24 | 6 6 18 24 47 45 Avg Prop Armor Cover (%) . | . . . . . . Naked Turns . | . . . . . . Heaviest Build 46 | 13 28 43 46 39 21 Greatest Support 40 | 20 40 40 28 29 29 Greatest Overweight (x) 4 | . . 4 1 1 . Average Overweight (x) . | . . . 1 . . Largest Inventory Capacity 15 | . 15 15 15 15 8 Average Capacity 12 | . 11 15 15 12 8 Most Carried 15 | . 15 15 13 15 8 Average Carried 11 | . 10 12 11 12 7 Final Capacity 15 | 8 15 15 15 8 8 Final Carried 15 | 6 15 10 13 8 7 Transmogrified Parts 22 | . . 6 11 4 1 Integrity Recovered 297 | . . 107 161 24 5 Class Distribution -------------------- 93% | Mutant 6% | Scavenger-Mutant Dominant Class ---------------- Mutant | -10/Materials Mutant | -9/Materials Mutant | -9/Mines Mutant | -9/Exiles Mutant | -8/Mines Resources | -11 -10 -9 -9 -9 -8 ----------- Run | Yrd Mat Mat Min Exi Min Matter Collected 759 | 200 88 305 72 . 94 Remotely . | . . . . . . Salvage Created 2040 | . 368 862 264 . 546 Parts 111 | . 19 45 18 . 29 Haulers Intercepted 2 | . . 2 . . . Recyclers Shooed 3 | . 1 1 1 . . Parts Field Recycled . | . . . . . . Retrieved Matter . | . . . . . . Parts Self-Destructed . | . . . . . . Prevented . | . . . . . . Parts Restored . | . . . . . . Kills | -11 -10 -9 -9 -9 -8 ------- Run | Yrd Mat Mat Min Exi Min Combat Hostiles Destroyed 39 | . 9 16 5 . 9 Melee 4 | . . . . . 4 Guns 16 | . 3 10 3 . . AOE 17 | . 6 5 2 . 4 Classes Destroyed 12 | . 5 6 . . 1 Worker 3 | . . 3 . . . Builder 7 | . 1 4 . . 2 Hauler 2 | . . 2 . . . Recycler 3 | . 1 1 1 . . Mechanic 1 | . . 1 . . . Watcher 1 | . 1 . . . . Swarmer 6 | . 3 3 . . . Grunt 26 | . 6 8 5 . 7 Brawler 1 | . . 1 . . . Duelist 1 | . . 1 . . . Sentry 4 | . . 3 . . 1 Hunter 1 | . . . . . 1 Best Kill Streak 15 | . 7 15 3 . 5 Combat Bots Only 7 | . 5 7 3 . 5 Max Kills in Single Turn 4 | . 3 4 3 . 1 Gunslinging . | . . . . . . Exploded 2 | . 2 2 2 . 1 Melee 1 | . . . . . 1 Uniques/NPCs Destroyed . | . . . . . . Combat | -11 -10 -9 -9 -9 -8 -------- Run | Yrd Mat Mat Min Exi Min Hostile Shots Fired 164 | . 35 102 7 . 20 Missed 44 | . 12 27 2 . 3 Hits 120 | . 23 75 5 . 17 Melee 6 | . . 6 . . . Projectile 114 | . 23 69 5 . 17 Critical Strikes 4 | . 1 3 . . . Damage Taken 1803 | . 352 1114 82 . 255 Core 343 | . 92 171 12 . 68 Absorbed by Shields . | . . . . . . Redirected to Shielding 55 | . . . 1 . 54 Core Remaining (%) 54 | 100 8 . . . . Volleys Fired 88 | . 23 48 6 . 11 Largest 2 | . 2 2 2 . 1 Hottest 112 | . 70 112 112 . 33 Shots Fired 151 | . 36 92 12 . 11 Gun 123 | . 26 87 10 . . Cannon . | . . . . . . Launcher 28 | . 10 5 2 . 11 Special . | . . . . . . Kinetic 33 | . 13 20 . . . Thermal 90 | . 13 67 10 . . Explosive 17 | . 10 5 2 . . Electromagnetic 11 | . . . . . 11 Robot Hit Streak 13 | . 8 13 6 . 9 Robot Miss Streak 2 | . 2 2 1 . 2 Penetration Max . | . . . . . . Secondary Targets 4 | . 1 2 1 . . Max Gunslinging Chain 1 | . 1 1 1 . . Shots Hit Robots 104 | . 19 64 8 . 13 Core Hits 86 | . 17 42 9 . 18 Critical Kills . | . . . . . . Critical Parts Destroyed . | . . . . . . Critical Strikes 7 | . 1 5 . . 1 Burn 6 | . 1 5 . . . Sever 1 | . . . . . 1 Melee Attacks 12 | . . . . . 12 Impact . | . . . . . . Slashing 12 | . . . . . 12 Piercing . | . . . . . . Sneak Attacks 5 | . . . . . 5 Combat Hostiles 2 | . . . . . 2 Follow-up Attacks . | . . . . . . Damage Inflicted 3614 | . 820 1600 292 . 902 Guns 1246 | . 223 936 87 . . Cannons . | . . . . . . Explosions 1748 | . 584 663 166 . 335 Melee 567 | . . . . . 567 Ramming 53 | . 13 1 39 . . Kinetic 256 | . 112 144 . . . Thermal 990 | . 111 792 87 . . Explosive 1413 | . 584 663 166 . . Electromagnetic 335 | . . . . . 335 Impact . | . . . . . . Slashing 567 | . . . . . 567 Piercing . | . . . . . . Highest Corruption 2 | . . . 2 . . Average Corruption 1 | . . . 1 . . Corruption Purged 2 | . . . 2 . . Corruption Blocked . | . . . . . . Overload Shots . | . . . . . . Overflow Damage 71 | . 3 38 . . 30 Projectiles . | . . . . . . Explosions 41 | . 3 38 . . . Melee 30 | . . . . . 30 Knockbacks 1 | . . . 1 . . Impact 1 | . . . 1 . . Kinetic . | . . . . . . Secondary . | . . . . . . Self-Inflicted Damage 139 | . 85 48 6 . . Shots 5 | . 3 1 1 . . Rammed 2 | . 2 . . . . Targets Rammed 8 | . 3 1 4 . . Kicked 5 | . 1 . 4 . . Crushed 1 | . . 1 . . . Highest Temperature 299 | . 184 299 9 . 4 Average Temperature 77 | . 101 75 6 . 4 Received Heat Transfer 615 | . 150 330 36 . 99 Siege Activations . | . . . . . . Martial Activations . | . . . . . . Shielding Activations . | . . . . . . Robots Disrupted . | . . . . . . Combat Hostiles . | . . . . . . Robots Corrupted 1 | . . . . . 1 Combat Hostiles 1 | . . . . . 1 Parts Fried 1 | . . . . . 1 Impact Corruptions . | . . . . . . Robots Melted 1 | . . 1 . . . Combat Hostiles 1 | . . 1 . . . Parts Melted 8 | . . 8 . . . Heat Transferred 3071 | . 407 2442 222 . . Parts Sabotaged . | . . . . . . Parts Stolen . | . . . . . . Parts Stripped . | . . . . . . Power Chain Reactions 1 | . . . . . 1 Alert | -11 -10 -9 -9 -9 -8 ------- Run | Yrd Mat Mat Min Exi Min Maximum Alert Level 1 | . . 1 1 . 1 Low Security (%) 76 | . 100 46 68 . 97 Level 1 23 | . . 53 31 . 2 Level 2 . | . . . . . . Level 3 . | . . . . . . Level 4 . | . . . . . . Level 5 . | . . . . . . High Security . | . . . . . . Max Security . | . . . . . . Peak Influence 353 | . 140 353 252 . 205 Initial 120 | . . 43 120 . . Average 143 | . 52 200 168 . 135 Influence Increases 1562 | . 274 556 342 . 390 Destroy 0b10 Robot/C 920 | . 180 320 180 . 240 Destroy 0b10 Robot/NC 85 | . 15 55 5 . 10 Destroy Leader 186 | . 32 84 30 . 40 Allied During Kill 46 | . . . 14 . 32 Successful Hack 28 | . 14 14 . . . Disable Machine 60 | . . 15 . . 45 Destroy Structure 105 | . 33 53 11 . 8 Partial Spotted 15 | . . 15 . . . Lose Combat Pursuer 15 | . . . . . 15 Miscellaneous 102 | . . . 102 . . Influence Decreases 1432 | . 170 351 467 184 260 Entered New Map 434 | . . 61 189 184 . Time Decay 858 | . 170 230 278 . 180 Lost Part 80 | . . 60 . . 20 Lost Ally 60 | . . . . . 60 Squads Dispatched 3 | . . 3 . . . Investigation 1 | . . 1 . . . Extermination . | . . . . . . Reinforcement 2 | . . 2 . . . Assault . | . . . . . . Garrison . | . . . . . . Intercept . | . . . . . . Searches Triggered . | . . . . . . Construction Impeded 1 | . . 1 . . . Haulers Reinforced . | . . . . . . Active Scanning Responses . | . . . . . . Cargo Convoy Interrupts . | . . . . . . Stealth | -11 -10 -9 -9 -9 -8 --------- Run | Yrd Mat Mat Min Exi Min Distress Signals 4 | . 3 1 . . . Communications Jammed . | . . . . . . Distress Signals . | . . . . . . Times Spotted 63 | . 13 26 9 . 15 Peak Tracking Total 10 | . 5 10 4 . 3 Tactical Retreats 1 | . . . . . 1 Traps | -11 -10 -9 -9 -9 -8 ------- Run | Yrd Mat Mat Min Exi Min Traps Triggered . | . . . . . . Indirectly . | . . . . . . Trap Hack Attempts . | . . . . . . Triggered . | . . . . . . Disarmed . | . . . . . . Reprogrammed . | . . . . . . Reused . | . . . . . . Traps Extracted . | . . . . . . Installed . | . . . . . . Triggered . | . . . . . . Machines | -11 -10 -9 -9 -9 -8 ---------- Run | Yrd Mat Mat Min Exi Min Machines Disabled 4 | . . 1 . . 3 Max in Single Turn 1 | . . 1 . . 1 Machines Repaired . | . . . . . . Machines Dismantled . | . . . . . . Machines Sabotaged . | . . . . . . Overloaded Fab Kills . | . . . . . . Hacking | -11 -10 -9 -9 -9 -8 --------- Run | Yrd Mat Mat Min Exi Min Machines Accessed 8 | . 4 2 . 2 . Terminals 6 | . 4 2 . . . Fabricators . | . . . . . . Repair Stations . | . . . . . . Recycling Units . | . . . . . . Scanalyzers . | . . . . . . Garrison Access . | . . . . . . Total Hacks 25 | . 12 11 . 2 . Successful 17 | . 8 7 . 2 . Failed 8 | . 4 4 . . . Catastrophic 2 | . 1 1 . . . Database Lockouts . | . . . . . . Manual 20 | . 12 7 . 1 . Terminals 23 | . 12 11 . . . Fabricators . | . . . . . . Repair Stations . | . . . . . . Recycling Units . | . . . . . . Scanalyzers . | . . . . . . Garrison Access . | . . . . . . Terminal Hacks 11 | . 4 5 . 2 . Record 1 | . . . . 1 . Prototype ID Bank 1 | . . 1 . . . Branch Access Points 1 | . 1 . . . . Alert Level 1 | . . 1 . . . Locate Traps 1 | . 1 . . . . Maintenance Status 1 | . . 1 . . . Patrol Status 1 | . . 1 . . . Hauler Manifests 2 | . 1 1 . . . Zone Layout 1 | . 1 . . . . Proto ID Catalog 1 | . . . . 1 . Fabricator Hacks . | . . . . . . Repair Station Hacks . | . . . . . . Recycling Unit Hacks . | . . . . . . Scanalyzer . | . . . . . . Garrison Access Hacks . | . . . . . . Unauthorized Hacks 6 | . 4 2 . . . Terminals 6 | . 4 2 . . . Botnet 1 | . 1 . . . . Skim 5 | . 3 2 . . . Fabricators . | . . . . . . Repair Stations . | . . . . . . Recycling Units . | . . . . . . Scanalyzers . | . . . . . . Garrison Access . | . . . . . . Data Cores Recovered . | . . . . . . Used . | . . . . . . Hacking Detections 6 | . 4 2 . . . Full Trace Events 1 | . . 1 . . . Feedback Events . | . . . . . . Feedback Blocked . | . . . . . . Robot Schematics Acquired . | . . . . . . Robots Built . | . . . . . . Authchips . | . . . . . . Time . | . . . . . . Total Robot Build Rating . | . . . . . . Part Schematics Acquired . | . . . . . . Parts Built . | . . . . . . Authchips . | . . . . . . Time . | . . . . . . Total Part Build Rating . | . . . . . . Part Studies Acquired . | . . . . . . Parts Repaired . | . . . . . . Time . | . . . . . . Parts Recycled . | . . . . . . Recycled Matter . | . . . . . . Retrieved Matter . | . . . . . . Retrieved Components . | . . . . . . Parts Scanalyzed . | . . . . . . Part Schematics Acquired . | . . . . . . Parts Damaged . | . . . . . . Bothacking | -11 -10 -9 -9 -9 -8 ------------ Run | Yrd Mat Mat Min Exi Min Used RIF Installer . | . . . . . . Robots Hacked . | . . . . . . Non-combat . | . . . . . . Combat . | . . . . . . Robot Hacks Applied . | . . . . . . Relay Couplers Released . | . . . . . . Fabnet Peak Effective % . | . . . . . . Robots Rewired . | . . . . . . Allies Hacked . | . . . . . . Hacks Repelled . | . . . . . . Allies | -11 -10 -9 -9 -9 -8 -------- Run | Yrd Mat Mat Min Exi Min Total Allies 3 | . . . 3 . . Largest Group 3 | . . . 3 3 3 Highest-Rated Group 40 | . . . 40 40 40 Highest-Rated Ally 16 | . . . 16 16 16 Total Orders . | . . . . . . Ally Attacks 40 | . . . 16 . 24 Total Damage 459 | . . . 179 . 280 Kills 7 | . . . 4 . 3 Allies Corrupted . | . . . . . . Allies Melted . | . . . . . . X0-1V1 Amusement Gains 28 | . 10 6 11 . 1 Average Entertainment 10 | . 19 12 13 . 5 Good Acts 3 | . . 1 1 . 1 Bad Acts 7 | . . 2 2 . 3 Intel | -11 -10 -9 -9 -9 -8 ------- Run | Yrd Mat Mat Min Exi Min Active Infowar (turns) . | . . . . . . Robot Analysis Total . | . . . . . . Derelict Logs Recovered . | . . . . . . Drone Launches . | . . . . . . Drone Recoveries . | . . . . . . Exploration | -11 -10 -9 -9 -9 -8 ------------- Run | Yrd Mat Mat Min Exi Min Turns Passed 2304 | . 439 482 610 395 378 Spaces Moved 1224 | 1 251 161 301 246 264 Core . | . . . . . . Treads 217 | . 112 105 . . . Legs 1007 | 1 139 56 301 246 264 Wheels . | . . . . . . Hover . | . . . . . . Flight . | . . . . . . Fastest Speed 90 | 120 120 160 185 90 110 Average Speed 153 | 120 137 194 189 144 110 Slowest Speed 400 | 120 160 400 190 185 110 Overloaded Moves . | . . . . . . Propulsion Burnouts . | . . . . . . Robots Hopped . | . . . . . . Potential Cave-ins . | . . . . . . Cave-ins Triggered . | . . . . . . Exploration Rate (%) 41 | 2 46 21 62 61 56 Regions Visited 5 Branch Regions 3 Pre-discovered Areas 1 | . . . . 1 . Known Exits Taken . | . . . . . . Unknown Exits Taken 5 | 1 1 1 1 1 . Scrap Searched 3 | . . . 2 . 1 Spaces Dug . | . . . . . . Terrain Destroyed 128 | . 48 53 17 . 10 Melee . | . . . . . . Projectile . | . . . . . . AOE 128 | . 48 53 17 . 10 Terrain Rammed . | . . . . . . Walls Destroyed . | . . . . . . Machines Disabled . | . . . . . . Actions | -11 -10 -9 -9 -9 -8 --------- Run | Yrd Mat Mat Min Exi Min Total 1478 | . 309 235 323 288 323 Wait 73 | . . 6 6 28 33 Move 1220 | . 251 160 300 245 264 Hop . | . . . . . . Pick Up 27 | . 15 4 3 4 1 Fast Attach 7 | . 1 3 2 . 1 Attach 10 | . 2 7 . 1 . Detach 5 | . 2 1 1 1 . Swap 12 | . 6 3 1 1 1 Drop 18 | . 7 2 . 8 1 Fire 88 | . 23 48 6 . 11 Melee 11 | . . . . . 11 Ram . | . . . . . . Kick 5 | . 1 . 4 . . Crush 2 | . 1 1 . . . Escape Stasis . | . . . . . . Rewire . | . . . . . . Trap . | . . . . . . Miscellaneous . | . . . . . . Route ------- -11/Scrapyard -10/Materials (discovered 3 exits: *Mat / Min / [*Sub]) -9/Materials -9/Mines -9/Exiles (discovered 2 exits: [*Min x2]) -8/Mines History --------- Turn | Location | Event 1 | -11/Scrapyard | Discovered new exit (range 0) 1 | -11/Scrapyard | Entered Materials 18 | -10/Materials | Identified exit to Mines 192 | -10/Materials | Discovered new exit (range 13) 300 | -10/Materials | Build established: Mutant 367 | -10/Materials | Discovered new exit (range 11) 384 | -10/Materials | Made a sacrifice at D.C.S.S. Altar Unit 384 | -10/Materials | Forcibly received Sfc. Transmogifier from X0-1V1 385 | -10/Materials | Core integrity fell below 50% 385 | -10/Materials | Core integrity fell below 20% 440 | -10/Materials | Entered another Materials area 440 | -9/Materials | Evolved 2 slots: Utility x2 660 | -9/Materials | Discovered new exit (range 11) 728 | -9/Materials | Ranged accuracy permanently improved by X0-1V1 (+5%; -50 max core) 782 | -9/Materials | Destroyed 7 combat bots 862 | -9/Materials | Core integrity fell below 50% 894 | -9/Materials | Lost 3 parts (1p1u1w) 922 | -9/Materials | Entered Mines 975 | -9/Mines | X0-1V1 added 0b10 threat records associated with you (minor) 1315 | -9/Mines | X0-1V1 put everyone to sleep 1351 | -9/Mines | Assisted by bots powering up and referring to "LRC-V3" 1523 | -9/Mines | Deemed a non-threat by the Exiles lab entrance 1523 | -9/Mines | Discovered new exit (range 5) 1532 | -9/Mines | Entered Exiles 1532 | -9/Exiles | Accompanied by 3 allies 1557 | -9/Exiles | Discovered new exit (range 15) 1579 | -9/Exiles | Met 8R-AWN 1656 | -9/Exiles | Met EX-HEX 1704 | -9/Exiles | Met EX-BIN 1728 | -9/Exiles | Aligned with FarCom system 1730 | -9/Exiles | Given EX-Vault access code 1776 | -9/Exiles | Opened EX-Vault 1794 | -9/Exiles | Found Field Lobotomy Kit 1824 | -9/Exiles | Warned to stay clear of 0b10 Research branches 1847 | -9/Exiles | Met EX-DEC 1857 | -9/Exiles | Learned location of Zion (-6) 1886 | -9/Exiles | Discovered new exit (range 14) 1927 | -9/Exiles | Left Exiles lab with Field Lobotomy Kit 1927 | -9/Exiles | Entered Mines 1927 | -8/Mines | Accompanied by 3 allies 2149 | -8/Mines | Core integrity fell below 20% 2305 | -8/Mines | X0-1V1 sent you into danger 2305 | -8/Mines | Destroyed by S-10 Pest with Light Assault Rifle Last Messages --------------- 02191_ Acquired 10 matter. 02193_ Sneak attack on H-55 Commando. 02193_ Penetrated by Slug. 02196_ H-55 Commando destroyed. 02200_ X0-1V1 blurs the world around you (-2 sight range). 02217_ T-07 Excavator is excavating. 02250_ Sneak attack on K-01 Serf. 02250_ Destroyed Wheel. 02252_ T-07 Excavator is excavating. 02256_ Dropped Rigged Fission Core. 02261_ T-07 Excavator is excavating. 02276_ U-05 Engineer lays Concrete. 02278_ T-07 Excavator is excavating. 02279_ Sneak attack on U-05 Engineer. 02279_ U-05 Engineer destroyed. 02279_ T-07 Excavator is excavating. 02302_ K-01 Serf collects debris. 02305_ X0-1V1: "Enjoy the ride!" 02305_ Lgt. Nuclear Core destroyed. 02305_ X0-1V1 cackles wildly! Map ----- +----------------------------------------------------+ | | | | | | | | | | | | | | | ????????????????????????????????????????????? | | ????????????????????????????????????????????? | | ????????????????????????????????????????????? | | ????????????????????????????????????????????? | | ????????????????????????????????????????????? | | ??????????????#####?????????????????????????? | | ?????????????## ##????????????????????????? | | ?????????????# #????????????????????????? | | ????????????## ##???????????????????????? | | ????????????# #???????????????????????? | | ???????????## ### ##??????????????????????? | | ??????????## #?# ##?????????????????????? | | ??????????# ##?# s##??????###???????????? | | ??????????# #??## s##????? ???????????? | | ??????????# #???##ss ####?? ???????????? | | ??????????# #????## ##? #???????????? | | ??????????# #?????## ## #???????????? | | ??????????## #??????## # #???????????? | | ???????????# ######??## @k # #???????????? | | ???????????#*! #???## # #???????????? | | ????????####%[#### #????# ## #???????????? | | ????????# =/% #??????## ## #???????????? | | ????????# !=[#??????# ##??????????? | | ????????# """ =%## ##### #??????????? | | ????????# """ ## ##?????????? | | ????????# """ ######### ###???????? | | ###?????# #???????## ##??????? | | ##????#########????????## #??????? | | ##?????????????????????## #??????? | | #??????????????????????### #??????? | | ##????????###????????????## """ #??????? | | ##??????## #???????????## """ ##??????? | | #?????## #?????????## """ #???????? | | #?????# ###??##### ##??????? | | #??????# #### ##?????? | | #???????# #?????? | | #???????##### #?????? | | % #???????????### ### ##?????? | | ##?????????????## ##?# ### #??????? | | # ##???????????????# #??# ## #??# #??????? | | ## #???????????###### #??#[ ## #??? #??????? | | ?# #???????????#=|%!! ####! #??? #??????? | | ## ##??????????#%###### % ####???? #??????? | +----------------------------------------------------+ Best States ------------- Heat Dissipation 64 Energy Generation 14 Energy Capacity 800 Matter Stores 300 Matter Capacity 300 Sight Range 16 Terrain Scan Density 85 Armor Coverage 450 Propulsion Shielding 66 Weapon Shielding 66 Evasion (%) 57 Recoil Reduction 2 Item Schematics ----------------- None Robot Schematics ------------------ None Fabricated ------------ Nothing Repaired ---------- Nothing Studied --------- None Alien Tech Used ----------------- None Achievements -------------- None Challenges ------------ None Game ------ Seed PoweredMetafieldSpiker Manual? 0 Play Time 00:15:35 Cumulative 1372.5 hours Start 2026.08.18 @ 11:07:22 End 2026.08.18 @ 11:23:02 Sessions 1 Manual Loads 0 Difficulty Rogue Special Mode None Game No. 1682 Rogue 1398 Adventurer 124 Explorer 160 Win Type - Total 72 Types 55/0/11/4/1/0/0/1/0/0 Lore% 92 Gallery% 84 Achievement% 74 Wizard Run 0 Options --------- Layout 0 ASCII 0 Keyboard 1 Movement Numpad Keybinds 0 Fullscreen 2 Font 18/X11 Map View 76x50 Zoom Use 0% Tactical HUD 1 Map Filters NONE Filters NONE Steam 1 RUN: 0295edcf-aa53-47bf-970d-e2416a75acea